Cogmind - Beta 17.1 @@@ ROGUE MODE // 2026.09.10 @ 09:23:17 // Winter2022/Polymind Player: FL-IST Result: Self-destructed Performance ------------- Evolutions (3) 1500 Regions Visited (6) 1200 Robots Destroyed (47) 235 Value Destroyed (1305) 1305 Prototype IDs (0) 0 Alien Tech Used (0) 0 Bonus (4786) 4786 TOTAL SCORE: 8966 Bonus ------- Polymind Skill 4610 Follower Combat Kills 176 Cogmind --------- Core Integrity 700/700 Matter 0/0 Energy 50/50 System Corruption 0% Temperature Cool (0) Movement Rolling (80) Location -7/Factory Parts ------- > --- POWER (1) -------- Light Ion Engine > --- PROPULSION (2) --- Wheel Wheel > --- UTILITY (2) ------ Machine Analyzer Recalibrator > --- WEAPON (0) ------- (None) > --- INVENTORY (12) --- Backup Power I Backup Power I Backup Propulsion I Backup Propulsion I Backup Propulsion I Backup Propulsion I Backup Plating I Backup Plating I Backup Laser I Backup Laser I Backup Laser I Backup Laser I Peak State ------------ > --- POWER ------------ Improved Ion Engine > --- PROPULSION ------- Light Treads Light Treads > --- UTILITY ---------- Heat Sink Heat Sink Light Armor Plating > --- WEAPON ----------- Beam Rifle Heavy Assault Rifle > --- INVENTORY -------- (None) [Rating: 11] Favorites ----------- Power Improved Ion Engine Engine Improved Ion Engine Power Core Light Nuclear Core Propulsion Light Treads Treads Light Treads Leg Aluminum Leg Wheel Wheel Hover Unit Hover Unit Flight Unit Flight Unit Utility Heat Sink Device Heat Sink Storage Medium Matter Pod Processor Visual Processing Unit Hackware Hacking Suite Protection Light Armor Plating Weapon Heavy Assault Rifle Energy Gun Beam Rifle Ballistic Gun Heavy Assault Rifle Special Weapon Mining Laser Special Melee Weapon Datajack Build | -11 -10 -10 -9 -9 -8 -7 ------- Run | Yrd Mat Min Mat Sto Mat Fac Slots Evolved . | . . . . . . . Power . | . . . . . . . Propulsion . | . . . . . . . Utility . | . . . . . . . Weapon . | . . . . . . . Parts Attached . | . . . . . . . Power . | . . . . . . . Engine . | . . . . . . . Core . | . . . . . . . Reactor . | . . . . . . . Propulsion . | . . . . . . . Treads . | . . . . . . . Leg . | . . . . . . . Wheel . | . . . . . . . Hover . | . . . . . . . Flight . | . . . . . . . Utility . | . . . . . . . Device . | . . . . . . . Storage . | . . . . . . . Processor . | . . . . . . . Hackware . | . . . . . . . Protection . | . . . . . . . Artifact . | . . . . . . . Weapon . | . . . . . . . Energy Gun . | . . . . . . . Energy Cannon . | . . . . . . . Ballistic Gun . | . . . . . . . Ballistic Cannon . | . . . . . . . Launcher . | . . . . . . . Special Weapon . | . . . . . . . Impact Weapon . | . . . . . . . Slashing Weapon . | . . . . . . . Piercing Weapon . | . . . . . . . Special Melee Weapon . | . . . . . . . Unidentified Prototypes . | . . . . . . . Parts Lost 11 | . . 2 3 5 1 . Power 2 | . . 1 . 1 . . Propulsion . | . . . . . . . Utility 6 | . . . 2 4 . . Weapon 3 | . . 1 1 . 1 . Highest Loss Streak 2 | . . 2 1 1 1 . To Critical Strikes . | . . . . . . . Average Backups . | . . . . . . 3 Power . | . . . . . . 1 Propulsion . | . . . . . . 1 Utility . | . . . . . . . Weapon . | . . . . . . . Tool/Special . | . . . . . . . Unused Backups 9 | . 6 . . . . 3 Power 1 | . . . . . . 1 Propulsion 1 | . . . . . . 1 Utility 6 | . 6 . . . . . Weapon 1 | . . . . . . 1 Tool/Special . | . . . . . . . Average Slot Usage (%) 79 | . 87 65 60 90 92 100 Engine 8 | . 16 12 1 9 9 20 Treads 18 | . . . 22 25 18 . Wheel 6 | . 25 29 1 . 5 40 Device 17 | . 18 10 10 22 20 20 Storage 2 | . 3 9 . . 2 16 Protection 4 | . . . 1 8 7 . Energy Gun 7 | . . . 6 10 11 . Ballistic Gun 9 | . 2 . 10 12 8 . Peak Build Rating 11 | 8 8 8 11 11 11 11 Average Rating 7 | 7 6 4 6 10 9 5 On Entrance 5 | . 8 8 4 5 7 5 Avg Prop Armor Cover (%) . | . . . . . . . Naked Turns 154 | . 30 72 36 . 14 2 Heaviest Build 18 | 6 15 6 18 18 18 9 Greatest Support 46 | 20 46 20 40 40 40 32 Greatest Overweight (x) . | . . . . . . . Average Overweight (x) . | . . . . . . . Largest Inventory Capacity 12 | . 6 1 1 1 4 12 Average Capacity 1 | . . . . 1 1 5 Most Carried 12 | . 6 . . . 2 12 Average Carried . | . . . . . . 4 Final Capacity 12 | . . 1 1 1 4 12 Final Carried 12 | . . . . . 2 12 Class Distribution -------------------- 75% | Sentry 7% | Worker 6% | Tunneler Dominant Class ---------------- Tunneler | -10/Materials Worker | -10/Mines Sentry | -9/Materials Sentry | -9/Storage Sentry | -8/Materials Recycler | -7/Factory Resources | -11 -10 -10 -9 -9 -8 -7 ----------- Run | Yrd Mat Min Mat Sto Mat Fac Matter Collected 345 | . 6 . 224 97 18 . Remotely . | . . . . . . . Salvage Created 1359 | . 22 . 314 791 232 . Parts 102 | . 6 . 33 51 12 . Haulers Intercepted . | . . . . . . . Recyclers Shooed 1 | . . . 1 . . . Parts Field Recycled . | . . . . . . . Retrieved Matter . | . . . . . . . Parts Self-Destructed . | . . . . . . . Prevented . | . . . . . . . Parts Restored . | . . . . . . . Kills | -11 -10 -10 -9 -9 -8 -7 ------- Run | Yrd Mat Min Mat Sto Mat Fac Combat Hostiles Destroyed 39 | . 3 . 12 18 6 . Guns 38 | . 2 . 12 18 6 . Cannons 1 | . 1 . . . . . Classes Destroyed 7 | . 1 . 6 . . . Worker 2 | . . . 1 1 . . Recycler 2 | . . . 1 . 1 . Watcher 4 | . . . 3 1 . . Swarmer 12 | . 3 . 4 2 3 . Grunt 15 | . . . 6 7 2 . Duelist 1 | . . . 1 . . . Sentry 11 | . . . 1 9 1 . Best Kill Streak 7 | . 2 . 7 3 3 . Combat Bots Only 7 | . 2 . 7 3 2 . Max Kills in Single Turn 2 | . 1 . 2 2 1 . Gunslinging 1 | . . . 1 1 . . Exploded . | . . . . . . . Melee . | . . . . . . . Uniques/NPCs Destroyed . | . . . . . . . Combat | -11 -10 -10 -9 -9 -8 -7 -------- Run | Yrd Mat Min Mat Sto Mat Fac Hostile Shots Fired 244 | . 10 23 61 104 46 . Missed 47 | . 5 5 12 18 7 . Hits 197 | . 5 18 49 86 39 . Melee 4 | . . . 4 . . . Projectile 193 | . 5 18 45 86 39 . Critical Strikes 12 | . . 1 1 7 3 . Damage Taken 2678 | . 39 244 643 1195 557 . Core 816 | . 39 114 161 185 317 . Absorbed by Shields . | . . . . . . . Core Remaining (%) 48 | 100 . 38 . 13 42 . Volleys Fired 130 | . 9 2 41 52 26 . Largest 2 | . 1 1 2 2 2 . Hottest 100 | . 100 100 79 79 79 . Shots Fired 225 | . 9 2 79 104 31 . Gun 219 | . 5 . 79 104 31 . Cannon . | . . . . . . . Launcher . | . . . . . . . Special 6 | . 4 2 . . . . Kinetic 103 | . 5 . 41 52 5 . Thermal 122 | . 4 2 38 52 26 . Explosive . | . . . . . . . Electromagnetic . | . . . . . . . Robot Hit Streak 27 | . 1 2 15 27 13 . Robot Miss Streak 4 | . 3 1 4 3 3 . Penetration Max . | . . . . . . . Secondary Targets 5 | . . . 2 3 . . Max Gunslinging Chain 1 | . . . 1 1 . . Shots Hit Robots 165 | . 4 1 57 79 24 . Core Hits 72 | . 3 1 24 33 11 . Critical Kills . | . . . . . . . Critical Parts Destroyed 1 | . . . 1 . . . Critical Strikes 8 | . . . 3 3 2 . Burn 7 | . . . 2 3 2 . Destroy 1 | . . . 1 . . . Melee Attacks 3 | . . . 3 . . . Impact . | . . . . . . . Slashing . | . . . . . . . Piercing . | . . . . . . . Sneak Attacks 2 | . . . 2 . . . Combat Hostiles 2 | . . . 2 . . . Follow-up Attacks . | . . . . . . . Damage Inflicted 2545 | . 53 39 848 1210 395 . Guns 2460 | . 27 . 848 1206 379 . Cannons . | . . . . . . . Explosions . | . . . . . . . Melee . | . . . . . . . Ramming 35 | . . 15 . 4 16 . Kinetic 1010 | . 27 . 413 513 57 . Thermal 1500 | . 26 24 435 693 322 . Explosive . | . . . . . . . Electromagnetic . | . . . . . . . Impact . | . . . . . . . Slashing . | . . . . . . . Piercing . | . . . . . . . Highest Corruption 2 | . . . . . 2 . Average Corruption 2 | . . . . . 2 . Corruption Purged . | . . . . . . . Corruption Blocked . | . . . . . . . Overload Shots . | . . . . . . . Overflow Damage . | . . . . . . . Projectiles . | . . . . . . . Explosions . | . . . . . . . Melee . | . . . . . . . Knockbacks . | . . . . . . . Impact . | . . . . . . . Kinetic . | . . . . . . . Secondary . | . . . . . . . Self-Inflicted Damage 13 | . . 6 . . 7 . Shots . | . . . . . . . Rammed 11 | . . 6 . 2 3 . Targets Rammed 11 | . . 6 . 2 3 . Kicked . | . . . . . . . Crushed . | . . . . . . . Highest Temperature 335 | . 145 210 335 99 124 . Average Temperature 88 | . 55 115 155 34 43 . Received Heat Transfer 1125 | . . 156 174 561 234 . Effects 2 | . . . 2 . . . Interference 1 | . . . 1 . . . Damage (minor) 1 | . . . 1 . . . Siege Activations . | . . . . . . . Martial Activations . | . . . . . . . Shielding Activations . | . . . . . . . Robots Disrupted . | . . . . . . . Combat Hostiles . | . . . . . . . Robots Corrupted . | . . . . . . . Combat Hostiles . | . . . . . . . Parts Fried . | . . . . . . . Impact Corruptions . | . . . . . . . Robots Melted . | . . . . . . . Combat Hostiles . | . . . . . . . Parts Melted 6 | . . . 1 5 . . Heat Transferred 4133 | . 50 50 1221 1924 888 . Parts Sabotaged . | . . . . . . . Parts Stolen . | . . . . . . . Parts Stripped . | . . . . . . . Power Chain Reactions . | . . . . . . . Alert | -11 -10 -10 -9 -9 -8 -7 ------- Run | Yrd Mat Min Mat Sto Mat Fac Maximum Alert Level 1 | . . . 1 1 1 . Low Security (%) 94 | 100 100 100 98 85 97 100 Level 1 5 | . . . 1 14 2 . Level 2 . | . . . . . . . Level 3 . | . . . . . . . Level 4 . | . . . . . . . Level 5 . | . . . . . . . High Security . | . . . . . . . Max Security . | . . . . . . . Peak Influence 281 | . 100 35 208 281 220 100 Initial 111 | . . 31 . . 111 100 Average 47 | . 29 7 56 58 36 77 Influence Increases 1500 | . 158 46 503 498 295 . Destroy 0b10 Robot/C 900 | . 60 . 360 360 120 . Destroy 0b10 Robot/NC 40 | . . . 25 10 5 . Destroy Leader 218 | . . . 76 122 20 . Allied During Kill 21 | . . . 21 . . . Trap Triggered on 0b10 20 | . 20 . . . . . Successful Hack 9 | . . . 4 5 . . Destroy Structure 7 | . 3 1 2 1 . . Partial Spotted 45 | . 15 15 15 . . . Lose Combat Pursuer 240 | . 60 30 . . 150 . Influence Decreases 1451 | . 77 127 503 232 341 171 Entered New Map 325 | . . 50 . . 155 120 Time Decay 970 | . 76 75 422 177 170 50 Lost Part 81 | . . 1 20 50 10 . Lost Ally 60 | . . . 60 . . . Miscellaneous 15 | . 1 1 1 5 6 1 Squads Dispatched 6 | . . . 1 5 . . Investigation 1 | . . . . 1 . . Extermination . | . . . . . . . Reinforcement 2 | . . . 1 1 . . Assault . | . . . . . . . Garrison 3 | . . . . 3 . . Intercept . | . . . . . . . Searches Triggered . | . . . . . . . Construction Impeded . | . . . . . . . Haulers Reinforced . | . . . . . . . Active Scanning Responses . | . . . . . . . Cargo Convoy Interrupts . | . . . . . . . Stealth | -11 -10 -10 -9 -9 -8 -7 --------- Run | Yrd Mat Min Mat Sto Mat Fac Distress Signals 5 | . . . 5 . . . Communications Jammed . | . . . . . . . Distress Signals . | . . . . . . . Times Spotted 80 | . 10 4 24 20 22 . Peak Tracking Total 8 | . 3 2 8 4 5 . Tactical Retreats 8 | . 3 1 . . 4 . Traps | -11 -10 -10 -9 -9 -8 -7 ------- Run | Yrd Mat Min Mat Sto Mat Fac Traps Triggered 2 | . . . . 2 . . Indirectly . | . . . . . . . Trap Hack Attempts . | . . . . . . . Triggered . | . . . . . . . Disarmed . | . . . . . . . Reprogrammed 4 | . 4 . . . . . Reused 2 | . 2 . . . . . Traps Extracted . | . . . . . . . Installed . | . . . . . . . Triggered 2 | . 2 . . . . . Machines | -11 -10 -10 -9 -9 -8 -7 ---------- Run | Yrd Mat Min Mat Sto Mat Fac Machines Disabled . | . . . . . . . Max in Single Turn . | . . . . . . . Machines Repaired . | . . . . . . . Machines Dismantled . | . . . . . . . Machines Sabotaged . | . . . . . . . Overloaded Fab Kills . | . . . . . . . Hacking | -11 -10 -10 -9 -9 -8 -7 --------- Run | Yrd Mat Min Mat Sto Mat Fac Machines Accessed 6 | . 2 . 2 1 . 1 Terminals 6 | . 2 . 2 1 . 1 Fabricators . | . . . . . . . Repair Stations . | . . . . . . . Recycling Units . | . . . . . . . Scanalyzers . | . . . . . . . Garrison Access . | . . . . . . . Total Hacks 13 | . 4 . 4 2 . 3 Successful 5 | . 1 . 2 2 . . Failed 8 | . 3 . 2 . . 3 Catastrophic 2 | . 1 . . . . 1 Database Lockouts . | . . . . . . . Manual 10 | . 1 . 4 2 . 3 Terminals 13 | . 4 . 4 2 . 3 Fabricators . | . . . . . . . Repair Stations . | . . . . . . . Recycling Units . | . . . . . . . Scanalyzers . | . . . . . . . Garrison Access . | . . . . . . . Terminal Hacks 1 | . 1 . . . . . Reprogram Traps 1 | . 1 . . . . . Fabricator Hacks . | . . . . . . . Repair Station Hacks . | . . . . . . . Recycling Unit Hacks . | . . . . . . . Scanalyzer . | . . . . . . . Garrison Access Hacks . | . . . . . . . Unauthorized Hacks 4 | . . . 2 2 . . Terminals 4 | . . . 2 2 . . Botnet 1 | . . . . 1 . . Skim 3 | . . . 2 1 . . Fabricators . | . . . . . . . Repair Stations . | . . . . . . . Recycling Units . | . . . . . . . Scanalyzers . | . . . . . . . Garrison Access . | . . . . . . . Data Cores Recovered . | . . . . . . . Used . | . . . . . . . Hacking Detections 5 | . 2 . 2 . . 1 Full Trace Events . | . . . . . . . Feedback Events . | . . . . . . . Feedback Blocked . | . . . . . . . Robot Schematics Acquired . | . . . . . . . Robots Built . | . . . . . . . Authchips . | . . . . . . . Time . | . . . . . . . Total Robot Build Rating . | . . . . . . . Part Schematics Acquired . | . . . . . . . Parts Built . | . . . . . . . Authchips . | . . . . . . . Time . | . . . . . . . Total Part Build Rating . | . . . . . . . Part Studies Acquired . | . . . . . . . Parts Repaired . | . . . . . . . Time . | . . . . . . . Parts Recycled . | . . . . . . . Recycled Matter . | . . . . . . . Retrieved Matter . | . . . . . . . Retrieved Components . | . . . . . . . Parts Scanalyzed . | . . . . . . . Part Schematics Acquired . | . . . . . . . Parts Damaged . | . . . . . . . Bothacking | -11 -10 -10 -9 -9 -8 -7 ------------ Run | Yrd Mat Min Mat Sto Mat Fac Used RIF Installer . | . . . . . . . Robots Hacked 11 | . 3 . 2 2 3 1 Non-combat 5 | . 2 . 1 . 1 1 Combat 6 | . 1 . 1 2 2 . Robot Hacks Applied 16 | . 4 . 2 4 5 1 locate_stockpiles 1 | . 1 . . . . . find_recycling 1 | . . . . . 1 . find_station 1 | . . . . . . 1 find_terminals 1 | . . . 1 . . . map_route 1 | . 1 . . . . . mark_security 1 | . 1 . . . . . find_shortcuts 6 | . 1 . 1 2 2 . find_garrison 4 | . . . . 2 2 . Relay Couplers Released . | . . . . . . . Fabnet Peak Effective % . | . . . . . . . Robots Rewired . | . . . . . . . Allies Hacked . | . . . . . . . Hacks Repelled . | . . . . . . . Allies | -11 -10 -10 -9 -9 -8 -7 -------- Run | Yrd Mat Min Mat Sto Mat Fac Total Allies 3 | . . 3 . . . . Largest Group 3 | . . 3 3 . . . Highest-Rated Group 40 | . . 40 40 . . . Highest-Rated Ally 16 | . . 16 16 . . . Total Orders . | . . . . . . . Ally Attacks 36 | . . . 36 . . . Total Damage 369 | . . . 369 . . . Kills 6 | . . . 6 . . . Allies Corrupted . | . . . . . . . Allies Melted . | . . . . . . . Intel | -11 -10 -10 -9 -9 -8 -7 ------- Run | Yrd Mat Min Mat Sto Mat Fac Active Infowar (turns) 470 | 73 276 103 . . . 18 Optics 36 | . 36 . . . . . Terrain 414 | 73 238 103 . . . . Seismic 414 | 73 238 103 . . . . T.N.C. 2 | . 2 . . . . . Machine Analysis 18 | . . . . . . 18 Robot Analysis Total 10 | 1 4 . 2 . 2 1 Derelict Logs Recovered 2 | . . 2 . . . . Drone Launches . | . . . . . . . Drone Recoveries . | . . . . . . . Exploration | -11 -10 -10 -9 -9 -8 -7 ------------- Run | Yrd Mat Min Mat Sto Mat Fac Turns Passed 5462 | 79 431 339 1774 1700 1034 105 Spaces Moved 2327 | 45 534 423 501 394 321 109 Core 259 | 11 46 118 61 . 21 2 Treads 723 | . 1 . 245 394 83 . Legs 65 | . . . . . 65 . Wheels 1038 | 34 357 305 83 . 152 107 Hover 171 | . 59 . 112 . . . Flight 71 | . 71 . . . . . Fastest Speed 37 | 50 37 50 50 160 50 50 Average Speed 100 | 72 69 71 110 160 110 94 Slowest Speed 160 | 80 160 80 160 160 160 100 Overloaded Moves . | . . . . . . . Propulsion Burnouts . | . . . . . . . Robots Hopped 1 | . 1 . . . . . Potential Cave-ins . | . . . . . . . Cave-ins Triggered . | . . . . . . . Exploration Rate (%) 41 | 4 51 74 47 66 40 6 Regions Visited 6 Branch Regions 2 Pre-discovered Areas 1 | . . 1 . . . . Known Exits Taken . | . . . . . . . Unknown Exits Taken 6 | 1 1 1 1 1 1 . Scrap Searched . | . . . . . . . Spaces Dug . | . . . . . . . Terrain Destroyed 4 | . 3 1 . . . . Melee . | . . . . . . . Projectile 4 | . 3 1 . . . . AOE . | . . . . . . . Terrain Rammed . | . . . . . . . Walls Destroyed . | . . . . . . . Machines Disabled . | . . . . . . . Actions | -11 -10 -10 -9 -9 -8 -7 --------- Run | Yrd Mat Min Mat Sto Mat Fac Total 5203 | 91 578 452 1643 1359 970 110 Wait 2673 | . 30 16 1099 912 616 . Move 2319 | 44 531 422 500 393 320 109 Hop 1 | . 1 . . . . . Pick Up 3 | . . . . . 2 1 Fast Attach . | . . . . . . . Attach . | . . . . . . . Detach . | . . . . . . . Swap . | . . . . . . . Drop 1 | . 1 . . . . . Fire 130 | . 9 2 41 52 26 . Melee 3 | . . . 3 . . . Ram 9 | . . 6 . . 3 . Kick . | . . . . . . . Crush 2 | . . . . 2 . . Escape Stasis . | . . . . . . . Rewire 4 | . 1 . . . 3 . Trap . | . . . . . . . Miscellaneous 58 | 47 5 6 . . . . Route ------- -11/Scrapyard -10/Materials (discovered 3 exits: *Mat / [*Min] / [*Sub]) -10/Mines (discovered 2 exits: *Mat x2) -9/Materials (discovered 2 exits: *Mat / *Sto) -9/Storage -8/Materials -7/Factory History --------- Turn | Location | Event 4 | -11/Scrapyard | Discovered new exit (range 15) 80 | -11/Scrapyard | Entered Materials 177 | -10/Materials | Discovered new exit (range 10) 276 | -10/Materials | Discovered new exit (range 7) 446 | -10/Materials | Discovered new exit (range 9) 511 | -10/Materials | Entered Mines 534 | -10/Mines | Received a Rocket Launcher from a helpful Derelict 566 | -10/Mines | Learned location of Recycling (-9) 634 | -10/Mines | Core integrity fell below 50% 642 | -10/Mines | Learned Materials garrison access intel 654 | -10/Mines | Discovered new exit (range 9) 727 | -10/Mines | A weapon hastily lodged in a ceiling crevice suddenly fell to the ground 839 | -10/Mines | Discovered new exit (range 6) 847 | -10/Mines | Assisted by bots powering up and referring to "LRC-V3" 850 | -10/Mines | Entered Materials 850 | -9/Materials | Accompanied by 3 allies 1089 | -9/Materials | Destroyed 7 combat bots 1961 | -9/Materials | Discovered new exit (range 15) 2504 | -9/Materials | Discovered new exit (range 5) 2624 | -9/Materials | Entered Storage 3730 | -9/Storage | Garrison activated, responded to threat 3752 | -9/Storage | Core integrity fell below 50% 4027 | -9/Storage | Discovered new exit (range 8) 4223 | -9/Storage | Core integrity fell below 20% 4324 | -9/Storage | Entered Materials 4325 | -8/Materials | Loaded intel: 1 garrison access location 5095 | -8/Materials | Discovered new exit (range 13) 5335 | -8/Materials | Core integrity fell below 50% 5358 | -8/Materials | Entered Factory 5463 | -7/Factory | Self-destructed Last Messages --------------- 05314_ Acquired Com. Wheel. 05316_ Acquired Lgt. Ion Engine. 05328_ Critical hit (Burn: +37). 05334_ Slammed into A-02 Transporter. 05334_ Destabilizing: System corrupted (+2). 05337_ Slammed into A-02 Transporter. 05338_ Destabilizing: System interference. 05338_ Tractor Beam temporarily disabled. LOCATION=UNKNOWN GOAL=ESCAPE 05390_ Acquired Flak Gun. 05443_ Released control of R-06 Scavenger. 05444_ R-06 Scavenger reactivates. 05445_ Took control of M-13 Machinist. 05445_ Extracted analysis data for M-13 Machinist. 05445_ U-05 Engineer works on Assembly Bed. 05457_ >> Machine Analyzer network decryption results: 05457_ DSF Access x1 05463_ Connecting with Terminal... 05463_ Current location identified: Factory Map ----- +----------------------------------------------------+ | ?????????????????????????????????????????????????? | | ?????????????????????????????????????????????????? | | ?????????????????????????????????????????????????? | | ?????????????????????????????????????????????????? | | ?????????????????????????????????????????????????? | | ???????????????????????????????????????????/?????? | | ?????????????????????????????????????????????????? | | ?????????????????????????????????????????######### | | ?????????????????????????????????????????# ! | | ?????????????????????????????????????????# | | ?????????????????????????????????????????# | | ?????????????????????????????????????????# | | ?????????????????????????????????????????# | | ?????????????????????????????????????????# | | ?????????????????????????????????????????# | | ?????????????????????????????????????????# | | ?????????????????????????????????????????# | | ????????????????????????????????????"""??# | | ????????????????????????????????????"R"??######+#+ | | ????????????????????????????????????"?"?[?????# | | "?????????????????????????????????????????????# | | "?????????????????????????????????????????????# | | ???????????????????????????????????????#+??]??# | | ?????????????????###########?########### ?????# " | | ?????????????????# T #?# # ?????# " | | ?????????????????# m #?# # #+#### " | | ?????????????????# #?# # " | | ?????????????????# """"" #?#= # " | | ?????????????????# """"" #?? + """ " | | ?????????????????# """ #???? # """ | | ?????????????????# #????? " # """ " | | ?????????????????# #?????? # " | | ????????????????######+#############/### ! " | | ?????????? " | | ?????????? " | | ?????????? " | | ??????????? | | ??????????? """" """" """" | | ???????????######## """" """" """" | | ??????????????????# """" """" """" | | ??????????????????# """" """" """" | | ??????????????????+ """" """" """" | | ??????????????????# """" """" """" = | | ??????????????????# ?? ? ? | | ??????????????????# ?? """" """" """" | | ??????????????????? ?? """" """" """" ## T# | | ????????????????????? ??? """" """" """"? ??##? | | ?????????????????????"?"?????"""" """"?""""??????? | | ?????????????????????"T"?????""""?""""?""""??????? | | ?????????????????????"""?????""""?""""?""""??????? | +----------------------------------------------------+ Best States ------------- Heat Dissipation 40 Energy Generation 19 Energy Capacity 215 Matter Stores 125 Matter Capacity 125 Sight Range 18 Terrain Scan Range 16 Terrain Scan Density 10 Armor Coverage 150 Resistance: EX 50 Resistance: I 25 Evasion (%) 62 Recoil Reduction 2 Offensive Hacking 10 Item Schematics ----------------- None Robot Schematics ------------------ None Fabricated ------------ Nothing Repaired ---------- Nothing Studied --------- None Alien Tech Used ----------------- None Achievements -------------- None Challenges ------------ None Polymind | -11 -10 -10 -9 -9 -8 -7 ---------- Run | Yrd Mat Min Mat Sto Mat Fac Hosts 17 | 1 5 2 2 2 4 1 Combat Hostiles 6 | . 1 . 1 2 2 . Allies . | . . . . . . . Unique Host Classes 10 | 1 4 . 2 . 2 1 Average Host Suspicion 59 | . 43 74 61 66 53 20 Unsuspicious Activity 3130 | 237 133 113 1123 895 627 2 Returns to Shadow 5 | . 1 . 2 1 1 . Fuzzy Dispatches . | . . . . . . . Protomatter Created 267 | . 3 . 143 92 29 . Used 190 | 5 33 10 28 46 63 5 Decayed 22 | . . . 22 . . . Highest Spend 30 | 5 12 5 23 23 30 5 Top 5 Hosts by Kills: Y-45 Defender (-9/Materials: 12) Y-45 Defender (-9/Storage: 11) Y-45 Defender (-9/Storage: 7) G-47 Trooper (-8/Materials: 5) S-10 Pest (-10/Materials: 2) Game ------ Seed TransportIntegrityOptics Manual? 0 Play Time 00:22:10 Cumulative 435.3 hours Start 2026.09.09 @ 17:08:06 End 2026.09.10 @ 09:23:17 Sessions 3 Manual Loads 0 Difficulty Rogue Special Mode Winter2022/Polymind Game No. 337 Rogue 337 Adventurer 0 Explorer 0 Win Type - Total 32 Types 19/0/8/2/0/0/0/1/1/1 Lore% 89 Gallery% 81 Achievement% 72 Wizard Run 0 Options --------- Layout 1 ASCII 0 Keyboard 0 Movement Numpad Keybinds 0 Fullscreen 1 Font 32/SmallcapsGlow Map View 77x35 Zoom Use 0% Tactical HUD 1 Map Filters NONE Filters NONE Steam 1 RUN: 99472580-9bb2-44ed-b067-f7ed4fb12b43